[Event "GrandPrix_30.05"]
[Site "Chess.com"]
[Date "2020.05.30"]
[Round "3"]
[White "kotmizer"]
[Black "Korchmar_Vasiliy"]
[Result "0-1"]
[WhiteElo "2205"]
[BlackElo "2114"]
[TimeControl "600+2"]
[EndTime "9:24:46 PDT"]
[Termination "Korchmar_Vasiliy won by resignation"]

1. e4 {[%clk 0:10:01.9]} 1... c5 {[%clk 0:10:00.8]} 2. Nf3 {[%clk 0:10:02]} 2...
d6 {[%clk 0:10:01.9]} 3. d4 {[%clk 0:10:02.4]} 3... cxd4 {[%clk 0:10:02.9]} 4.
Nxd4 {[%clk 0:10:04]} 4... Nf6 {[%clk 0:10:03.9]} 5. Nc3 {[%clk 0:10:04.9]} 5...
Nc6 {[%clk 0:10:04.3]} 6. Nxc6 {[%clk 0:09:54.2]} 6... bxc6 {[%clk 0:10:04.8]}
7. Bd3 {[%clk 0:09:55.8]} 7... g6 {[%clk 0:09:57.8]} 8. O-O {[%clk 0:09:56.5]}
8... Bg7 {[%clk 0:09:58.7]} 9. f4 {[%clk 0:09:57.4]} 9... O-O {[%clk 0:09:33.7]}
10. Kh1 {[%clk 0:09:56.6]} 10... Rb8 {[%clk 0:09:14.6]} 11. Qe1 {[%clk
0:09:50.1]} 11... Nd7 {[%clk 0:08:49.3]} 12. Rf3 {[%clk 0:09:35.1]} 12... Nc5
{[%clk 0:08:39.1]} 13. Bf1 {[%clk 0:09:33.1]} 13... d5 {[%clk 0:05:25]} 14. e5
{[%clk 0:08:35]} 14... Bf5 {[%clk 0:05:24.7]} 15. Bd3 {[%clk 0:08:31.6]} 15...
Nxd3 {[%clk 0:04:40.3]} 16. cxd3 {[%clk 0:08:31.5]} 16... c5 {[%clk 0:04:27.4]}
17. Qh4 {[%clk 0:08:24.2]} 17... f6 {[%clk 0:03:52.3]} 18. g4 {[%clk 0:08:17.4]}
18... Bc8 {[%clk 0:03:43.4]} 19. f5 {[%clk 0:07:17.3]} 19... fxe5 {[%clk
0:03:17.9]} 20. fxg6 {[%clk 0:05:55.2]} 20... hxg6 {[%clk 0:02:52.4]} 21. Rh3
{[%clk 0:05:55.5]} 21... Rf1+ {[%clk 0:01:33.4]} 22. Kg2 {[%clk 0:05:54.4]}
22... Rf6 {[%clk 0:01:35.3]} 23. Kg1 {[%clk 0:05:04.6]} 23... Rb4 {[%clk
0:01:34.4]} 24. Rg3 {[%clk 0:04:50]} 24... Rf3 {[%clk 0:00:35.3]} 25. h3 {[%clk
0:04:06.4]} 25... Qf8 {[%clk 0:00:28.5]} 26. Bg5 {[%clk 0:03:19.4]} 26... Bb7
{[%clk 0:00:10]} 27. Rg2 {[%clk 0:03:09.4]} 27... e4 {[%clk 0:00:07]} 28. Bxe7
{[%clk 0:02:41.2]} 28... Bd4+ {[%clk 0:00:07.4]} 29. Kh2 {[%clk 0:02:42.4]}
29... Be5+ {[%clk 0:00:08]} 30. Kg1 {[%clk 0:02:43.2]} 30... Bd4+ {[%clk
0:00:07.6]} 31. Kh2 {[%clk 0:02:44.7]} 31... Qf7 {[%clk 0:00:09.1]} 32. Bd6
{[%clk 0:02:37.7]} 32... Rb6 {[%clk 0:00:08.4]} 33. Qd8+ {[%clk 0:02:34.5]}
33... Kg7 {[%clk 0:00:08.2]} 34. Na4 {[%clk 0:01:34.9]} 34... Rc6 {[%clk
0:00:07.2]} 35. Nxc5 {[%clk 0:01:22.1]} 35... Rxc5 {[%clk 0:00:05.9]} 36. dxe4
{[%clk 0:01:04.4]} 36... dxe4 {[%clk 0:00:05.8]} 37. Rd1 {[%clk 0:00:53.8]}
37... Rd5 {[%clk 0:00:06.1]} 38. Rxd4 {[%clk 0:00:53.4]} 38... Rxd6 {[%clk
0:00:04]} 39. Qxd6 {[%clk 0:00:48.5]} 39... e3 {[%clk 0:00:05.1]} 40. Qe5+
{[%clk 0:00:46.5]} 40... Kh7 {[%clk 0:00:06.1]} 41. Qg5 {[%clk 0:00:13.6]} 41...
Rf2 {[%clk 0:00:05.3]} 42. Qh4+ {[%clk 0:00:14]} 42... Kg7 {[%clk 0:00:06.1]}
43. Rxf2 {[%clk 0:00:12.9]} 43... exf2 {[%clk 0:00:08]} 44. Rd1 {[%clk
0:00:12.1]} 44... f1=Q {[%clk 0:00:08.4]} 45. Rxf1 {[%clk 0:00:13.7]} 45... Qxf1
{[%clk 0:00:10.1]} 46. Qe7+ {[%clk 0:00:14.7]} 46... Qf7 {[%clk 0:00:11.1]} 47.
Qe5+ {[%clk 0:00:15.4]} 47... Kh7 {[%clk 0:00:10]} 48. Qd4 {[%clk 0:00:16.6]}
48... Qc7+ {[%clk 0:00:08]} 49. Kg1 {[%clk 0:00:15.7]} 49... Qg3+ {[%clk
0:00:08]} 50. Kf1 {[%clk 0:00:17.2]} 50... Ba6+ {[%clk 0:00:09.2]} 0-1

[Event "GrandPrix_30.05"]
[Site "Chess.com"]
[Date "2020.05.30"]
[Round "3"]
[White "elohunter1999"]
[Black "weplaychess09"]
[Result "0-1"]
[WhiteElo "2174"]
[BlackElo "2075"]
[TimeControl "600+2"]
[EndTime "9:24:50 PDT"]
[Termination "weplaychess09 won by resignation"]

1. e4 {[%clk 0:10:01.9]} 1... e5 {[%clk 0:09:59.4]} 2. Nf3 {[%clk 0:09:59.2]}
2... Nc6 {[%clk 0:10:00.4]} 3. Bb5 {[%clk 0:09:59.4]} 3... a6 {[%clk 0:10:00.8]}
4. Ba4 {[%clk 0:10:00.2]} 4... Nf6 {[%clk 0:10:01.6]} 5. O-O {[%clk 0:10:00.6]}
5... Be7 {[%clk 0:10:02.3]} 6. Re1 {[%clk 0:10:00.9]} 6... b5 {[%clk 0:10:03]}
7. Bb3 {[%clk 0:10:01.4]} 7... d6 {[%clk 0:10:03.9]} 8. c3 {[%clk 0:10:01.9]}
8... O-O {[%clk 0:10:05]} 9. h3 {[%clk 0:10:02.5]} 9... Nb8 {[%clk 0:10:04.5]}
10. d4 {[%clk 0:10:02.9]} 10... Nbd7 {[%clk 0:10:05.8]} 11. c4 {[%clk
0:10:03.7]} 11... c6 {[%clk 0:10:06.4]} 12. Nc3 {[%clk 0:10:02]} 12... Qc7
{[%clk 0:10:04.8]} 13. a3 {[%clk 0:09:57.6]} 13... Bb7 {[%clk 0:09:59.4]} 14.
Be3 {[%clk 0:09:50.9]} 14... Rfe8 {[%clk 0:09:58.1]} 15. Qc2 {[%clk 0:09:44.4]}
15... Bf8 {[%clk 0:09:53.2]} 16. Rad1 {[%clk 0:08:24.2]} 16... Rad8 {[%clk
0:09:26.2]} 17. Nh4 {[%clk 0:06:45.3]} 17... bxc4 {[%clk 0:09:06.5]} 18. Bxc4
{[%clk 0:06:43.3]} 18... d5 {[%clk 0:08:58.1]} 19. Ba2 {[%clk 0:05:42]} 19...
Qb8 {[%clk 0:07:26.1]} 20. exd5 {[%clk 0:05:17.4]} 20... Nxd5 {[%clk 0:06:53.7]}
21. Nxd5 {[%clk 0:05:14.3]} 21... cxd5 {[%clk 0:06:54.4]} 22. dxe5 {[%clk
0:05:14.4]} 22... Nxe5 {[%clk 0:06:55.1]} 23. Nf5 {[%clk 0:05:01.9]} 23... Rc8
{[%clk 0:06:14]} 24. Qe2 {[%clk 0:04:42.1]} 24... Nc4 {[%clk 0:06:10.1]} 25. Qg4
{[%clk 0:04:22.6]} 25... g6 {[%clk 0:05:47.5]} 26. Bd4 {[%clk 0:04:11.8]} 26...
Rxe1+ {[%clk 0:05:45.9]} 27. Rxe1 {[%clk 0:04:11.2]} 27... Re8 {[%clk
0:05:43.5]} 28. Rxe8 {[%clk 0:03:29.6]} 28... Qxe8 {[%clk 0:05:43.1]} 29. Qg5
{[%clk 0:03:09.8]} 29... Qe1+ {[%clk 0:04:40.1]} 30. Kh2 {[%clk 0:03:08.1]}
30... Qe6 {[%clk 0:04:20.5]} 31. Nh6+ {[%clk 0:02:28.7]} 31... Bxh6 {[%clk
0:04:20.2]} 32. Qxh6 {[%clk 0:02:30.6]} 32... Qd6+ {[%clk 0:04:09.6]} 33. Kg1
{[%clk 0:01:57.1]} 33... f6 {[%clk 0:04:03]} 34. h4 {[%clk 0:01:54]} 34... Bc8
{[%clk 0:03:46.3]} 35. Bb1 {[%clk 0:01:32.4]} 35... Qe7 {[%clk 0:03:21.4]} 36.
h5 {[%clk 0:00:17.7]} 36... Qe1+ {[%clk 0:02:27.6]} 37. Kh2 {[%clk 0:00:16.9]}
37... Qxb1 {[%clk 0:02:24.7]} 38. Bxf6 {[%clk 0:00:17.3]} 38... Kf7 {[%clk
0:02:24.8]} 39. Qg7+ {[%clk 0:00:17]} 39... Ke6 {[%clk 0:02:26]} 40. g4 {[%clk
0:00:14.2]} 40... Kd6 {[%clk 0:02:18.1]} 41. Qe7+ {[%clk 0:00:14.1]} 41... Kc6
{[%clk 0:02:19.1]} 42. Bd4 {[%clk 0:00:13.1]} 42... Qe4 {[%clk 0:02:14.9]} 43.
Qc5+ {[%clk 0:00:12.4]} 43... Kd7 {[%clk 0:02:16.1]} 44. Qa7+ {[%clk 0:00:12.5]}
44... Ke8 {[%clk 0:02:17.2]} 45. Qxh7 {[%clk 0:00:09]} 45... Qf4+ {[%clk
0:02:09.6]} 46. Kh1 {[%clk 0:00:06.7]} 46... Qxd4 {[%clk 0:01:41.4]} 47. Qg8+
{[%clk 0:00:07.2]} 47... Kd7 {[%clk 0:01:41.2]} 48. hxg6 {[%clk 0:00:08.1]}
48... Qe4+ {[%clk 0:01:39.3]} 49. Kh2 {[%clk 0:00:06.9]} 49... Qf4+ {[%clk
0:01:37.7]} 50. Kh1 {[%clk 0:00:06.3]} 50... Qxf2 {[%clk 0:01:12.2]} 51. Qxd5+
{[%clk 0:00:05.4]} 51... Nd6 {[%clk 0:01:12.6]} 52. g7 {[%clk 0:00:05.5]} 52...
Qh4+ {[%clk 0:01:01.4]} 53. Kg1 {[%clk 0:00:05.1]} 53... Qxg4+ {[%clk
0:01:02.8]} 54. Qg2 {[%clk 0:00:05.5]} 54... Qxg2+ {[%clk 0:01:04]} 55. Kxg2
{[%clk 0:00:07.4]} 55... Bb7+ {[%clk 0:01:05.1]} 56. Kf2 {[%clk 0:00:07.7]}
56... Bd5 {[%clk 0:01:06.6]} 57. Ke3 {[%clk 0:00:08.8]} 57... Ne8 {[%clk
0:01:06.6]} 58. Kd4 {[%clk 0:00:09.6]} 58... Bg8 {[%clk 0:01:07.6]} 59. Kc5
{[%clk 0:00:09.7]} 59... Kc7 {[%clk 0:01:08.6]} 60. b4 {[%clk 0:00:10.3]} 60...
Nd6 {[%clk 0:01:05]} 61. a4 {[%clk 0:00:09.9]} 61... Nb7+ {[%clk 0:01:04.5]} 62.
Kd4 {[%clk 0:00:08.7]} 62... Kb6 {[%clk 0:01:04.1]} 63. b5 {[%clk 0:00:08.9]}
63... a5 {[%clk 0:01:05]} 64. Ke5 {[%clk 0:00:07.5]} 64... Nc5 {[%clk
0:01:05.7]} 0-1

[Event "GrandPrix_30.05"]
[Site "Chess.com"]
[Date "2020.05.30"]
[Round "3"]
[White "MiroVlasenko"]
[Black "Olga_Girya"]
[Result "0-1"]
[WhiteElo "2315"]
[BlackElo "2231"]
[TimeControl "600+2"]
[EndTime "9:24:51 PDT"]
[Termination "Olga_Girya won by resignation"]

1. d4 {[%clk 0:10:01.9]} 1... Nf6 {[%clk 0:09:58.5]} 2. Bg5 {[%clk 0:10:02.7]}
2... d5 {[%clk 0:09:58.2]} 3. e3 {[%clk 0:10:03.5]} 3... c5 {[%clk 0:09:57.6]}
4. Bxf6 {[%clk 0:09:47.4]} 4... gxf6 {[%clk 0:09:58.5]} 5. dxc5 {[%clk
0:09:45.1]} 5... e6 {[%clk 0:09:58.7]} 6. c4 {[%clk 0:09:45.9]} 6... dxc4 {[%clk
0:09:57.5]} 7. Qxd8+ {[%clk 0:09:45.8]} 7... Kxd8 {[%clk 0:09:57.9]} 8. Bxc4
{[%clk 0:09:46.3]} 8... Bxc5 {[%clk 0:09:57]} 9. Ne2 {[%clk 0:09:42.6]} 9... b6
{[%clk 0:09:38.8]} 10. Nd2 {[%clk 0:09:26.8]} 10... Bb7 {[%clk 0:09:25.1]} 11.
O-O {[%clk 0:09:25.3]} 11... Rg8 {[%clk 0:09:02]} 12. g3 {[%clk 0:09:25.9]}
12... Nd7 {[%clk 0:09:01.8]} 13. Nc3 {[%clk 0:08:57]} 13... Ne5 {[%clk 0:08:31]}
14. Be2 {[%clk 0:08:57.3]} 14... f5 {[%clk 0:08:25.8]} 15. Nb3 {[%clk
0:08:37.3]} 15... Bb4 {[%clk 0:06:04.2]} 16. f4 {[%clk 0:08:32.5]} 16... Ng4
{[%clk 0:05:12.6]} 17. Bxg4 {[%clk 0:07:34.4]} 17... fxg4 {[%clk 0:05:12.8]} 18.
Rad1+ {[%clk 0:06:42.2]} 18... Ke7 {[%clk 0:05:06.6]} 19. Rd4 {[%clk 0:06:15.5]}
19... Bxc3 {[%clk 0:04:20.7]} 20. bxc3 {[%clk 0:06:14.9]} 20... Rgd8 {[%clk
0:04:21.3]} 21. f5 {[%clk 0:05:42.5]} 21... Rxd4 {[%clk 0:03:18.4]} 22. f6+
{[%clk 0:05:13.7]} 22... Kd6 {[%clk 0:03:18.7]} 23. Nxd4 {[%clk 0:03:49.1]}
23... Ke5 {[%clk 0:03:15.1]} 24. Rf4 {[%clk 0:03:35.5]} 24... Rc8 {[%clk
0:02:57.9]} 25. c4 {[%clk 0:03:12.2]} 25... h5 {[%clk 0:01:54.3]} 26. Nb3 {[%clk
0:03:10.3]} 26... Rd8 {[%clk 0:01:37]} 27. Nd4 {[%clk 0:03:00.5]} 27... Rc8
{[%clk 0:01:37.9]} 28. Nb3 {[%clk 0:03:01.1]} 28... Ba6 {[%clk 0:01:36.4]} 29.
c5 {[%clk 0:03:01.9]} 29... bxc5 {[%clk 0:01:28.1]} 30. Ra4 {[%clk 0:03:02.7]}
30... Bd3 {[%clk 0:01:14.9]} 31. Ra5 {[%clk 0:02:54.2]} 31... Kxf6 {[%clk
0:01:04.1]} 32. Nxc5 {[%clk 0:02:52.9]} 32... Bg6 {[%clk 0:00:56.4]} 33. Kf2
{[%clk 0:02:43.1]} 33... Rc7 {[%clk 0:00:41.6]} 34. e4 {[%clk 0:02:40.4]} 34...
e5 {[%clk 0:00:30.2]} 35. Ke3 {[%clk 0:02:30.9]} 35... Ke7 {[%clk 0:00:30.6]}
36. Nd3 {[%clk 0:02:24.4]} 36... f6 {[%clk 0:00:31.4]} 37. Nb4 {[%clk
0:02:25.1]} 37... Bf7 {[%clk 0:00:32.4]} 38. Rxa7 {[%clk 0:02:15.9]} 38... Rxa7
{[%clk 0:00:32.5]} 39. Nc6+ {[%clk 0:02:16.9]} 39... Kd6 {[%clk 0:00:31.1]} 40.
Nxa7 {[%clk 0:02:17.8]} 40... Bxa2 {[%clk 0:00:32.7]} 41. Nb5+ {[%clk
0:02:18.4]} 41... Ke6 {[%clk 0:00:28.2]} 42. Nc7+ {[%clk 0:02:11.5]} 42... Kd7
{[%clk 0:00:26.4]} 43. Nb5 {[%clk 0:02:12]} 43... Bc4 {[%clk 0:00:26.4]} 44. Nc3
{[%clk 0:02:09.2]} 44... Kc6 {[%clk 0:00:27.8]} 45. Nd1 {[%clk 0:01:56.7]} 45...
Kc5 {[%clk 0:00:28.7]} 46. Nf2 {[%clk 0:01:55.9]} 46... Kb4 {[%clk 0:00:29.5]}
47. h3 {[%clk 0:01:54.2]} 47... gxh3 {[%clk 0:00:25.2]} 48. Nxh3 {[%clk
0:01:55.2]} 48... Kc3 {[%clk 0:00:26.6]} 49. Ng1 {[%clk 0:01:54.3]} 49... Kc2
{[%clk 0:00:25.4]} 50. Nf3 {[%clk 0:01:48.4]} 50... Kd1 {[%clk 0:00:26.3]} 51.
Nh4 {[%clk 0:01:22.6]} 51... Ke1 {[%clk 0:00:22.8]} 52. Ng6 {[%clk 0:01:22.9]}
52... Kf1 {[%clk 0:00:21.5]} 53. Ne7 {[%clk 0:00:47]} 53... Kg2 {[%clk
0:00:21.1]} 54. Nf5 {[%clk 0:00:44.5]} 54... Be6 {[%clk 0:00:18.6]} 55. Ng7
{[%clk 0:00:45.3]} 55... Bf7 {[%clk 0:00:19.7]} 56. Nf5 {[%clk 0:00:45.1]} 56...
Be8 {[%clk 0:00:19.2]} 57. Ke2 {[%clk 0:00:37]} 57... Bd7 {[%clk 0:00:20.1]} 58.
Ng7 {[%clk 0:00:38]} 58... Bg4+ {[%clk 0:00:19.7]} 59. Ke1 {[%clk 0:00:35.9]}
59... Kxg3 {[%clk 0:00:21.6]} 60. Ne8 {[%clk 0:00:36.9]} 60... h4 {[%clk
0:00:17.3]} 0-1

[Event "GrandPrix_30.05"]
[Site "Chess.com"]
[Date "2020.05.30"]
[Round "3"]
[White "Kostya_Nikologorskiy"]
[Black "gygygygygyggygygygy"]
[Result "0-1"]
[WhiteElo "2182"]
[BlackElo "2039"]
[TimeControl "600+2"]
[EndTime "9:24:52 PDT"]
[Termination "gygygygygyggygygygy won by resignation"]

1. e4 {[%clk 0:10:01.9]} 1... Nf6 {[%clk 0:09:59.9]} 2. e5 {[%clk 0:10:01.1]}
2... Nd5 {[%clk 0:10:00.6]} 3. d4 {[%clk 0:09:59.7]} 3... d6 {[%clk 0:10:01.7]}
4. c4 {[%clk 0:09:59.9]} 4... Nb6 {[%clk 0:10:03.1]} 5. exd6 {[%clk 0:10:00.3]}
5... cxd6 {[%clk 0:10:04.4]} 6. Nf3 {[%clk 0:10:01.2]} 6... g6 {[%clk
0:10:05.9]} 7. Be2 {[%clk 0:10:02.1]} 7... Bg7 {[%clk 0:10:07.5]} 8. O-O {[%clk
0:10:03.4]} 8... O-O {[%clk 0:10:09.1]} 9. b3 {[%clk 0:10:01.3]} 9... Nc6 {[%clk
0:10:07.7]} 10. Bb2 {[%clk 0:09:59.4]} 10... Bg4 {[%clk 0:10:07.1]} 11. h3
{[%clk 0:09:45.4]} 11... Bxf3 {[%clk 0:10:06.3]} 12. Bxf3 {[%clk 0:09:47.3]}
12... d5 {[%clk 0:10:07.7]} 13. c5 {[%clk 0:09:44.1]} 13... Nc8 {[%clk
0:10:08.7]} 14. Na3 {[%clk 0:09:38.3]} 14... e6 {[%clk 0:10:01]} 15. Nc2 {[%clk
0:09:37.1]} 15... N8e7 {[%clk 0:09:59.7]} 16. b4 {[%clk 0:09:38]} 16... Nf5
{[%clk 0:09:59.2]} 17. b5 {[%clk 0:08:48.5]} 17... Na5 {[%clk 0:09:55.3]} 18.
Bc3 {[%clk 0:08:49.6]} 18... Nc4 {[%clk 0:09:55.2]} 19. Qd3 {[%clk 0:08:25.2]}
19... Qg5 {[%clk 0:08:51.9]} 20. Rae1 {[%clk 0:07:29.3]} 20... Nh4 {[%clk
0:07:51.5]} 21. Bg4 {[%clk 0:07:28.8]} 21... h5 {[%clk 0:07:43]} 22. f4 {[%clk
0:07:28.9]} 22... Qf6 {[%clk 0:07:33.9]} 23. Be2 {[%clk 0:07:16]} 23... Nf5
{[%clk 0:06:51.2]} 24. Qf3 {[%clk 0:05:22.5]} 24... b6 {[%clk 0:05:41.4]} 25. c6
{[%clk 0:04:56.6]} 25... Nfd6 {[%clk 0:05:27.1]} 26. Bxc4 {[%clk 0:04:52.2]}
26... Nxc4 {[%clk 0:05:22.8]} 27. Nb4 {[%clk 0:04:17.3]} 27... Nd6 {[%clk
0:05:01.3]} 28. a4 {[%clk 0:04:08.7]} 28... Ne4 {[%clk 0:04:43.4]} 29. Rd1
{[%clk 0:03:32.5]} 29... h4 {[%clk 0:04:13.8]} 30. Bb2 {[%clk 0:03:18.6]} 30...
Rfc8 {[%clk 0:02:49.1]} 31. Nd3 {[%clk 0:02:54.2]} 31... a6 {[%clk 0:02:28.5]}
32. Ne5 {[%clk 0:02:48.2]} 32... axb5 {[%clk 0:02:27.2]} 33. axb5 {[%clk
0:02:50.1]} 33... Qe7 {[%clk 0:02:20]} 34. Qb3 {[%clk 0:02:23.4]} 34... Ra5
{[%clk 0:01:41.4]} 35. Nd7 {[%clk 0:02:14.1]} 35... Qd8 {[%clk 0:01:16.4]} 36.
Rfe1 {[%clk 0:00:47.9]} 36... Nd6 {[%clk 0:01:06.3]} 37. Ba3 {[%clk 0:00:24.8]}
37... Nxb5 {[%clk 0:00:48.8]} 38. Bb4 {[%clk 0:00:18]} 38... Nxd4 {[%clk
0:00:45.7]} 39. Qe3 {[%clk 0:00:10.7]} 39... Nc2 {[%clk 0:00:41.9]} 40. Qxb6
{[%clk 0:00:11.4]} 40... Nxb4 {[%clk 0:00:16.6]} 41. Qxb4 {[%clk 0:00:12.6]}
41... Rxc6 {[%clk 0:00:17.2]} 42. Rc1 {[%clk 0:00:13.3]} 42... Rxc1 {[%clk
0:00:15.3]} 43. Rxc1 {[%clk 0:00:15.2]} 43... Ra8 {[%clk 0:00:15.5]} 44. Qb7
{[%clk 0:00:12.5]} 44... Bd4+ {[%clk 0:00:12.4]} 45. Kh1 {[%clk 0:00:10.6]}
45... Ra7 {[%clk 0:00:13.6]} 46. Rc8 {[%clk 0:00:08.9]} 46... Rxb7 {[%clk
0:00:13.9]} 47. Rxd8+ {[%clk 0:00:10.8]} 47... Kg7 {[%clk 0:00:15.3]} 48. g3
{[%clk 0:00:07.5]} 48... hxg3 {[%clk 0:00:15.6]} 49. Kg2 {[%clk 0:00:09]} 49...
Bf2 {[%clk 0:00:16.4]} 50. Ne5 {[%clk 0:00:09.3]} 50... Rb2 {[%clk 0:00:17.1]}
51. Nd3 {[%clk 0:00:08.7]} 51... Rd2 {[%clk 0:00:16.7]} 52. Nxf2 {[%clk
0:00:05.9]} 52... gxf2 {[%clk 0:00:17.4]} 0-1

[Event "GrandPrix_30.05"]
[Site "Chess.com"]
[Date "2020.05.30"]
[Round "3"]
[White "Kiril1965"]
[Black "ploky25"]
[Result "1-0"]
[WhiteElo "2593"]
[BlackElo "2185"]
[TimeControl "600+2"]
[EndTime "9:24:57 PDT"]
[Termination "Kiril1965 won by resignation"]

1. c4 {[%clk 0:10:01.9]} 1... c5 {[%clk 0:09:52.5]} 2. Nf3 {[%clk 0:10:00.4]}
2... Nc6 {[%clk 0:09:50.6]} 3. Nc3 {[%clk 0:10:00.3]} 3... e5 {[%clk 0:09:45]}
4. e3 {[%clk 0:09:58.9]} 4... Nf6 {[%clk 0:09:41.8]} 5. a3 {[%clk 0:09:57.8]}
5... Be7 {[%clk 0:08:30.3]} 6. Qc2 {[%clk 0:09:42.4]} 6... O-O {[%clk
0:08:26.4]} 7. Be2 {[%clk 0:09:35.9]} 7... d5 {[%clk 0:08:12.9]} 8. cxd5 {[%clk
0:09:34.1]} 8... Nxd5 {[%clk 0:08:13.4]} 9. Nxd5 {[%clk 0:09:19.9]} 9... Qxd5
{[%clk 0:08:13]} 10. d3 {[%clk 0:09:13.5]} 10... Bg4 {[%clk 0:07:49.2]} 11. O-O
{[%clk 0:09:10.2]} 11... Rad8 {[%clk 0:07:43]} 12. Rd1 {[%clk 0:08:51.3]} 12...
Kh8 {[%clk 0:07:36.8]} 13. b3 {[%clk 0:08:32.4]} 13... Qe6 {[%clk 0:07:07.6]}
14. Bb2 {[%clk 0:08:28.4]} 14... Rd7 {[%clk 0:06:52]} 15. Qc4 {[%clk 0:07:02.5]}
15... f6 {[%clk 0:06:22.4]} 16. h3 {[%clk 0:06:55.3]} 16... Bf5 {[%clk
0:06:10.4]} 17. g4 {[%clk 0:06:18.6]} 17... Qxc4 {[%clk 0:05:50.3]} 18. bxc4
{[%clk 0:06:08.6]} 18... Be6 {[%clk 0:05:40.6]} 19. Bc3 {[%clk 0:06:06.2]} 19...
Rfd8 {[%clk 0:05:35.6]} 20. Nd2 {[%clk 0:05:55.7]} 20... Kg8 {[%clk 0:05:16.2]}
21. Rab1 {[%clk 0:05:52.6]} 21... Kf7 {[%clk 0:05:06.2]} 22. Ne4 {[%clk
0:05:47.4]} 22... b6 {[%clk 0:05:02]} 23. Rd2 {[%clk 0:05:39.6]} 23... h5 {[%clk
0:04:38.6]} 24. Kg2 {[%clk 0:05:34.1]} 24... hxg4 {[%clk 0:04:31.2]} 25. hxg4
{[%clk 0:05:32.5]} 25... Rh8 {[%clk 0:04:26.8]} 26. Ng3 {[%clk 0:05:13.1]} 26...
g6 {[%clk 0:04:07.2]} 27. Bf3 {[%clk 0:04:53.9]} 27... Rc7 {[%clk 0:04:01.5]}
28. Bd5 {[%clk 0:04:41.4]} 28... Rd8 {[%clk 0:03:30.2]} 29. e4 {[%clk
0:04:31.4]} 29... Rh8 {[%clk 0:03:10.7]} 30. Rdd1 {[%clk 0:04:19.2]} 30... Nd4
{[%clk 0:03:06]} 31. Rh1 {[%clk 0:04:14.7]} 31... Rcc8 {[%clk 0:03:04.8]} 32. a4
{[%clk 0:04:14.8]} 32... Nc2 {[%clk 0:02:20.3]} 33. g5 {[%clk 0:03:50.4]} 33...
Nb4 {[%clk 0:01:58.8]} 34. Rbd1 {[%clk 0:03:22.1]} 34... fxg5 {[%clk 0:01:24.9]}
35. Bxe5 {[%clk 0:03:14.3]} 35... Rh4 {[%clk 0:01:25.2]} 36. Ne2 {[%clk
0:02:24.6]} 36... Bf6 {[%clk 0:01:21.4]} 37. Bg3 {[%clk 0:02:16.3]} 37... Rxh1
{[%clk 0:00:50.7]} 38. Rxh1 {[%clk 0:02:14.8]} 38... Rh8 {[%clk 0:00:51.4]} 39.
Rxh8 {[%clk 0:01:55.5]} 39... Bxh8 {[%clk 0:00:51.3]} 40. Bb8 {[%clk 0:01:56.2]}
40... Nxd3 {[%clk 0:00:50.5]} 41. Bxa7 {[%clk 0:01:56]} 41... Nb2 {[%clk
0:00:51.1]} 42. Bxb6 {[%clk 0:01:51.3]} 42... Nxa4 {[%clk 0:00:51.7]} 43. Bd8
{[%clk 0:01:25]} 43... Nb2 {[%clk 0:00:46.3]} 44. Bxe6+ {[%clk 0:01:09.8]} 44...
Kxe6 {[%clk 0:00:46.4]} 45. Bxg5 {[%clk 0:01:11]} 45... Nxc4 {[%clk 0:00:46.8]}
46. Nf4+ {[%clk 0:01:11.8]} 46... Kf7 {[%clk 0:00:47.1]} 47. Nd5 {[%clk
0:01:03.3]} 47... Bd4 {[%clk 0:00:43.1]} 48. Kf3 {[%clk 0:01:01.9]} 48... Nd6
{[%clk 0:00:34.4]} 49. Bh4 {[%clk 0:00:50.1]} 49... Be5 {[%clk 0:00:28.6]} 50.
Ke3 {[%clk 0:00:47]} 50... c4 {[%clk 0:00:24.8]} 51. f3 {[%clk 0:00:44.4]} 51...
Ke6 {[%clk 0:00:23.5]} 52. Be1 {[%clk 0:00:40.3]} 52... Bb2 {[%clk 0:00:18.6]}
53. Bb4 {[%clk 0:00:36.9]} 53... Nb5 {[%clk 0:00:18]} 54. Nf4+ {[%clk
0:00:37.4]} 54... Kf7 {[%clk 0:00:18.2]} 55. Ne2 {[%clk 0:00:36.1]} 55... Ke6
{[%clk 0:00:15.5]} 56. Ba5 {[%clk 0:00:35.7]} 56... Bg7 {[%clk 0:00:12.3]} 57.
Bb6 {[%clk 0:00:34.7]} 57... Bh6+ {[%clk 0:00:12.5]} 58. f4 {[%clk 0:00:32.4]}
58... Bg7 {[%clk 0:00:11.7]} 59. Ba5 {[%clk 0:00:31.7]} 59... Bb2 {[%clk
0:00:12.1]} 1-0